[Event "Titled Tuesday Blitz April 25 Early 2023"]
[White "Skvortsov, Andrei"]
[Black "Tanmay Jain"]
[WhiteFideId "24108600"]
[BlackFideId "45015481"]
[WhiteElo "2259"]
[BlackElo "2032"]
[Result "1-0"]
[Round "05"]
[TimeControl "180+2"]
[Date "2023.04.25"]
[WhiteClock "0:00:08"]
[BlackClock "0:00:04"]

1. e4 {[%clk 0:03:00]}  d5 {[%clk 0:02:55]} 2. exd5 {[%clk 0:02:58]}  Qxd5 {[%clk 0:02:55]} 3. Nc3 {[%clk 0:02:58]}  Qd8 {[%clk 0:02:56]} 4. Bc4 {[%clk 0:02:55]}  Nf6 {[%clk 0:02:56]} 5. d4 {[%clk 0:02:53]}  e6 {[%clk 0:02:56]} 6. Nge2 {[%clk 0:02:53]}  b6 {[%clk 0:02:56]} 7. O-O {[%clk 0:02:53]}  Bb7 {[%clk 0:02:56]} 8. Bg5 {[%clk 0:02:49]}  Be7 {[%clk 0:02:56]} 9. f3 {[%clk 0:02:49]}  O-O {[%clk 0:02:56]} 10. Ng3 {[%clk 0:02:49]}  Nbd7 {[%clk 0:02:54]} 11. Qd2 {[%clk 0:02:47]}  c5 {[%clk 0:02:53]} 12. dxc5 {[%clk 0:02:45]}  Qc7 {[%clk 0:02:44]} 13. Be3 {[%clk 0:01:46]}  Bxc5 {[%clk 0:02:36]} 14. Bb3 {[%clk 0:01:42]}  Rad8 {[%clk 0:02:32]} 15. Bxc5 {[%clk 0:01:38]}  Nxc5 {[%clk 0:02:29]} 16. Qe3 {[%clk 0:01:38]}  a6 {[%clk 0:02:22]} 17. Rad1 {[%clk 0:01:35]}  b5 {[%clk 0:02:22]} 18. Nce2 {[%clk 0:01:34]}  Nxb3 {[%clk 0:02:13]} 19. cxb3 {[%clk 0:01:32]}  Nd5 {[%clk 0:02:11]} 20. Qf2 {[%clk 0:01:30]}  Qc2 {[%clk 0:02:03]} 21. Nd4 {[%clk 0:01:25]}  Qc5 {[%clk 0:02:02]} 22. Rc1 {[%clk 0:01:19]}  Qb6 {[%clk 0:02:02]} 23. Rfd1 {[%clk 0:01:17]}  Rfe8 {[%clk 0:01:53]} 24. Nc2 {[%clk 0:01:14]}  Qd6 {[%clk 0:01:42]} 25. Ne4 {[%clk 0:01:13]}  Qe7 {[%clk 0:01:36]} 26. Nc5 {[%clk 0:01:12]}  Nf4 {[%clk 0:01:18]} 27. b4 {[%clk 0:00:59]}  Bd5 {[%clk 0:01:13]} 28. a3 {[%clk 0:00:42]}  Qg5 {[%clk 0:00:58]} 29. Kh1 {[%clk 0:00:42]}  Qf6 {[%clk 0:00:56]} 30. Ne3 {[%clk 0:00:30]}  Rd6 {[%clk 0:00:45]} 31. Ne4 {[%clk 0:00:27]}  Bxe4 {[%clk 0:00:38]} 32. Rxd6 {[%clk 0:00:27]}  Nd3 {[%clk 0:00:38]} 33. Qd2 {[%clk 0:00:21]}  Nxc1 {[%clk 0:00:37]} 34. Ng4 {[%clk 0:00:17]}  Qf5 {[%clk 0:00:33]} 35. Ne3 {[%clk 0:00:10]}  Qf6 {[%clk 0:00:25]} 36. Qxc1 {[%clk 0:00:09]}  Bg6 {[%clk 0:00:23]} 37. Kg1 {[%clk 0:00:08]}  h5 {[%clk 0:00:21]} 38. Qd2 {[%clk 0:00:08]}  h4 {[%clk 0:00:21]} 39. h3 {[%clk 0:00:07]}  Qe5 {[%clk 0:00:17]} 40. Rd4 {[%clk 0:00:06]}  Rc8 {[%clk 0:00:16]} 41. Rxh4 {[%clk 0:00:04]}  Qg5 {[%clk 0:00:16]} 42. Rd4 {[%clk 0:00:04]}  Rc2 {[%clk 0:00:15]} 43. Nxc2 {[%clk 0:00:04]}  Qe5 {[%clk 0:00:14]} 44. Ne3 {[%clk 0:00:04]}  Qc7 {[%clk 0:00:13]} 45. Nf1 {[%clk 0:00:03]}  Qe5 {[%clk 0:00:12]} 46. Rd8+ {[%clk 0:00:03]}  Kh7 {[%clk 0:00:12]} 47. Qd4 {[%clk 0:00:03]}  Qf5 {[%clk 0:00:12]} 48. Qh4+ {[%clk 0:00:03]}  Bh5 {[%clk 0:00:12]} 49. Rd2 {[%clk 0:00:04]}  Qg6 {[%clk 0:00:08]} 50. Qf2 {[%clk 0:00:05]}  Qh6 {[%clk 0:00:07]} 51. Ng3 {[%clk 0:00:06]}  Bg6 {[%clk 0:00:07]} 52. f4 {[%clk 0:00:07]}  Qh4 {[%clk 0:00:07]} 53. Kh2 {[%clk 0:00:07]}  Qf6 {[%clk 0:00:07]} 54. Qd4 {[%clk 0:00:06]}  Qe7 {[%clk 0:00:07]} 55. f5 {[%clk 0:00:06]}  exf5 {[%clk 0:00:06]} 56. Rf2 {[%clk 0:00:06]}  Qe6 {[%clk 0:00:06]} 57. Qf4 {[%clk 0:00:07]}  Qf6 {[%clk 0:00:06]} 58. Nxf5 {[%clk 0:00:07]}  Qe6 {[%clk 0:00:05]} 59. Ng3 {[%clk 0:00:07]}  Kg8 {[%clk 0:00:04]} 60. Rd2 {[%clk 0:00:07]}  Qe7 {[%clk 0:00:04]} 61. Qd6 {[%clk 0:00:07]}  Qe3 {[%clk 0:00:03]} 62. Qd8+ {[%clk 0:00:07]}  Kh7 {[%clk 0:00:04]} 63. Qh4+ {[%clk 0:00:08]}  Kg8 {[%clk 0:00:04]} 64. Rd8+ {[%clk 0:00:08]} 1-0


[Site "https://www.chess.com"]

[Event "Titled Tuesday Blitz April 25 Early 2023"]
[White "Jovic, Stanoje"]
[Black "KRUMMEL2008"]
[WhiteFideId "905020"]
[WhiteElo "2236"]
[BlackElo "2631"]
[Result "0-1"]
[Round "05"]
[TimeControl "180+2"]
[Date "2023.04.25"]
[WhiteClock "0:00:02"]
[BlackClock "0:00:02"]

1. c4 {[%clk 0:03:00]}  Nf6 {[%clk 0:02:59]} 2. g3 {[%clk 0:02:59]}  g6 {[%clk 0:03:00]} 3. Bg2 {[%clk 0:02:59]}  Bg7 {[%clk 0:03:00]} 4. Nc3 {[%clk 0:03:00]}  O-O {[%clk 0:03:00]} 5. Nf3 {[%clk 0:03:00]}  c5 {[%clk 0:02:59]} 6. O-O {[%clk 0:03:00]}  Nc6 {[%clk 0:03:00]} 7. d4 {[%clk 0:03:00]}  d6 {[%clk 0:03:01]} 8. dxc5 {[%clk 0:02:59]}  dxc5 {[%clk 0:03:02]} 9. Bf4 {[%clk 0:02:59]}  Nh5 {[%clk 0:03:01]} 10. Be3 {[%clk 0:02:58]}  b6 {[%clk 0:03:01]} 11. Qa4 {[%clk 0:02:57]}  Bd7 {[%clk 0:02:26]} 12. Rfd1 {[%clk 0:02:56]}  Bxc3 {[%clk 0:02:13]} 13. bxc3 {[%clk 0:02:53]}  Qc7 {[%clk 0:02:13]} 14. Rd2 {[%clk 0:02:35]}  Rad8 {[%clk 0:01:41]} 15. Rad1 {[%clk 0:02:35]}  Nf6 {[%clk 0:01:34]} 16. Bf4 {[%clk 0:02:28]}  Qc8 {[%clk 0:01:33]} 17. h3 {[%clk 0:02:19]}  Na5 {[%clk 0:01:25]} 18. Qc2 {[%clk 0:02:00]}  Nxc4 {[%clk 0:01:25]} 19. Rd3 {[%clk 0:01:58]}  Bf5 {[%clk 0:01:15]} 20. Qa4 {[%clk 0:01:32]}  Bxd3 {[%clk 0:01:11]} 21. exd3 {[%clk 0:01:32]}  Nb2 {[%clk 0:01:11]} 22. Qc2 {[%clk 0:01:29]}  Nxd1 {[%clk 0:01:11]} 23. Qxd1 {[%clk 0:01:30]}  Qe6 {[%clk 0:01:07]} 24. Qc2 {[%clk 0:01:22]}  c4 {[%clk 0:01:04]} 25. d4 {[%clk 0:01:18]}  Qe4 {[%clk 0:01:03]} 26. Qa4 {[%clk 0:01:15]}  Qd3 {[%clk 0:00:59]} 27. Qb4 {[%clk 0:01:06]}  Nd5 {[%clk 0:00:57]} 28. Qa3 {[%clk 0:01:00]}  Qxc3 {[%clk 0:00:40]} 29. Qxa7 {[%clk 0:00:57]}  Qa1+ {[%clk 0:00:36]} 30. Kh2 {[%clk 0:00:56]}  c3 {[%clk 0:00:36]} 31. Bh6 {[%clk 0:00:46]}  c2 {[%clk 0:00:30]} 32. Ne5 {[%clk 0:00:46]}  c1=Q {[%clk 0:00:21]} 33. Bxc1 {[%clk 0:00:46]}  Qxc1 {[%clk 0:00:21]} 34. Qb7 {[%clk 0:00:40]}  Qc7 {[%clk 0:00:15]} 35. Qa6 {[%clk 0:00:32]}  Nf6 {[%clk 0:00:14]} 36. Qa4 {[%clk 0:00:23]}  Qd6 {[%clk 0:00:13]} 37. Nf3 {[%clk 0:00:22]}  Ra8 {[%clk 0:00:13]} 38. Qb3 {[%clk 0:00:21]}  Qa3 {[%clk 0:00:11]} 39. Qxb6 {[%clk 0:00:20]}  Qxa2 {[%clk 0:00:11]} 40. d5 {[%clk 0:00:19]}  Qxd5 {[%clk 0:00:09]} 41. Nh4 {[%clk 0:00:10]}  Qd6 {[%clk 0:00:09]} 42. Qe3 {[%clk 0:00:08]}  Rab8 {[%clk 0:00:09]} 43. Qg5 {[%clk 0:00:07]}  Rfd8 {[%clk 0:00:05]} 44. Nf5 {[%clk 0:00:06]}  Qe6 {[%clk 0:00:02]} 45. Ne3 {[%clk 0:00:04]}  Rbc8 {[%clk 0:00:02]} 46. h4 {[%clk 0:00:03]}  h5 {[%clk 0:00:02]} 47. Bh3 {[%clk 0:00:03]}  Qd6 {[%clk 0:00:02]} 48. Bxc8 {[%clk 0:00:02]}  Rxc8 {[%clk 0:00:02]} 0-1


[Site "https://www.chess.com"]

[Event "Titled Tuesday Blitz April 25 Early 2023"]
[White "Ibadov, Dashgyn"]
[Black "Sliwicki, Damian"]
[WhiteFideId "24107514"]
[BlackFideId "1127128"]
[WhiteElo "2208"]
[BlackElo "2030"]
[Result "1-0"]
[Round "05"]
[TimeControl "180+2"]
[Date "2023.04.25"]
[WhiteClock "0:00:41"]
[BlackClock "0:00:08"]

1. e4 {[%clk 0:03:00]}  c5 {[%clk 0:02:53]} 2. Nf3 {[%clk 0:03:00]}  g6 {[%clk 0:02:54]} 3. d4 {[%clk 0:02:57]}  cxd4 {[%clk 0:02:55]} 4. Nxd4 {[%clk 0:02:58]}  Nc6 {[%clk 0:02:54]} 5. Nc3 {[%clk 0:02:59]}  Bg7 {[%clk 0:02:55]} 6. Be3 {[%clk 0:03:00]}  Nf6 {[%clk 0:02:55]} 7. Nxc6 {[%clk 0:03:00]}  bxc6 {[%clk 0:02:55]} 8. e5 {[%clk 0:03:01]}  Ng8 {[%clk 0:02:55]} 9. Bd4 {[%clk 0:03:01]}  f6 {[%clk 0:02:41]} 10. f4 {[%clk 0:02:48]}  Qc7 {[%clk 0:02:36]} 11. Bc4 {[%clk 0:02:46]}  fxe5 {[%clk 0:02:34]} 12. fxe5 {[%clk 0:02:47]}  Bxe5 {[%clk 0:02:32]} 13. O-O {[%clk 0:02:44]}  Bxh2+ {[%clk 0:02:12]} 14. Kh1 {[%clk 0:02:44]}  Be5 {[%clk 0:02:13]} 15. Bf7+ {[%clk 0:02:22]}  Kd8 {[%clk 0:02:12]} 16. Nd5 {[%clk 0:02:07]}  Qd6 {[%clk 0:01:05]} 17. Qe1 {[%clk 0:01:04]}  Bxd4 {[%clk 0:00:52]} 18. Qa5+ {[%clk 0:01:03]}  Bb6 {[%clk 0:00:52]} 19. Nxb6 {[%clk 0:01:04]}  Qc7 {[%clk 0:00:46]} 20. Qc3 {[%clk 0:01:04]}  e5 {[%clk 0:00:30]} 21. Nxa8 {[%clk 0:00:55]}  Qb8 {[%clk 0:00:30]} 22. Rae1 {[%clk 0:00:48]}  Ne7 {[%clk 0:00:22]} 23. Rxe5 {[%clk 0:00:42]}  Rf8 {[%clk 0:00:08]} 24. Qa5+ {[%clk 0:00:41]} 1-0


[Site "https://www.chess.com"]

[Event "Titled Tuesday Blitz April 25 Early 2023"]
[White "Jeet, Jain"]
[Black "Estrada Nieto, Julian"]
[WhiteFideId "5073022"]
[BlackFideId "5101018"]
[WhiteElo "2067"]
[BlackElo "2161"]
[Result "0-1"]
[Round "05"]
[TimeControl "180+2"]
[Date "2023.04.25"]
[WhiteClock "0:02:15"]
[BlackClock "0:01:36"]

1. c4 {[%clk 0:02:59]}  e5 {[%clk 0:02:59]} 2. Nc3 {[%clk 0:02:59]}  Nf6 {[%clk 0:02:59]} 3. g3 {[%clk 0:02:59]}  d5 {[%clk 0:02:59]} 4. cxd5 {[%clk 0:02:59]}  Nxd5 {[%clk 0:03:00]} 5. Bg2 {[%clk 0:02:59]}  Nb6 {[%clk 0:03:00]} 6. Nf3 {[%clk 0:02:59]}  Nc6 {[%clk 0:03:01]} 7. O-O {[%clk 0:02:59]}  Be7 {[%clk 0:03:01]} 8. d3 {[%clk 0:02:58]}  O-O {[%clk 0:03:02]} 9. a3 {[%clk 0:02:58]}  Be6 {[%clk 0:02:58]} 10. b4 {[%clk 0:02:58]}  a5 {[%clk 0:02:58]} 11. b5 {[%clk 0:02:58]}  Nd4 {[%clk 0:02:58]} 12. Nxe5 {[%clk 0:02:53]}  Bf6 {[%clk 0:02:53]} 13. f4 {[%clk 0:02:36]}  Bxe5 {[%clk 0:02:49]} 14. fxe5 {[%clk 0:02:36]}  Nb3 {[%clk 0:02:49]} 15. Be3 {[%clk 0:02:32]}  Nxa1 {[%clk 0:02:44]} 16. Qxa1 {[%clk 0:02:33]}  Nd5 {[%clk 0:02:41]} 17. Nxd5 {[%clk 0:02:30]}  Bxd5 {[%clk 0:02:41]} 18. Bh3 {[%clk 0:02:30]}  Re8 {[%clk 0:02:29]} 19. Bd4 {[%clk 0:02:30]}  Qe7 {[%clk 0:01:47]} 20. a4 {[%clk 0:02:24]}  c6 {[%clk 0:01:43]} 21. b6 {[%clk 0:02:19]}  Rad8 {[%clk 0:01:41]} 22. e3 {[%clk 0:02:15]}  Be6 {[%clk 0:01:37]} 23. Rc1 {[%clk 0:02:15]}  Bxh3 {[%clk 0:01:36]} 0-1


[Site "https://www.chess.com"]

[Event "Titled Tuesday Blitz April 25 Early 2023"]
[White "Mrudul Dehankar"]
[Black "Osinenko, Anton"]
[WhiteFideId "25096990"]
[BlackFideId "4158970"]
[WhiteElo "2139"]
[BlackElo "2294"]
[Result "1-0"]
[Round "05"]
[TimeControl "180+2"]
[Date "2023.04.25"]
[WhiteClock "0:00:06"]
[BlackClock "0:00:40"]

1. e4 {[%clk 0:03:00]}  c5 {[%clk 0:02:54]} 2. Nf3 {[%clk 0:03:00]}  d6 {[%clk 0:02:55]} 3. d4 {[%clk 0:03:01]}  cxd4 {[%clk 0:02:56]} 4. Nxd4 {[%clk 0:03:01]}  Nf6 {[%clk 0:02:56]} 5. Nc3 {[%clk 0:03:02]}  a6 {[%clk 0:02:57]} 6. Bg5 {[%clk 0:03:03]}  Nbd7 {[%clk 0:02:57]} 7. f4 {[%clk 0:03:01]}  b5 {[%clk 0:02:57]} 8. Bxf6 {[%clk 0:02:17]}  gxf6 {[%clk 0:02:48]} 9. a4 {[%clk 0:01:43]}  b4 {[%clk 0:02:32]} 10. Nd5 {[%clk 0:01:38]}  Nc5 {[%clk 0:02:25]} 11. Qf3 {[%clk 0:01:03]}  Bb7 {[%clk 0:02:22]} 12. f5 {[%clk 0:01:03]}  Bxd5 {[%clk 0:01:53]} 13. exd5 {[%clk 0:01:02]}  Qb6 {[%clk 0:01:53]} 14. a5 {[%clk 0:00:55]}  Qb7 {[%clk 0:01:44]} 15. Bc4 {[%clk 0:00:54]}  Nd7 {[%clk 0:01:41]} 16. Bb3 {[%clk 0:00:45]}  Ne5 {[%clk 0:01:37]} 17. Ba4+ {[%clk 0:00:43]}  Kd8 {[%clk 0:01:35]} 18. Qe4 {[%clk 0:00:36]}  Rg8 {[%clk 0:01:29]} 19. Nc6+ {[%clk 0:00:22]}  Nxc6 {[%clk 0:01:24]} 20. Bxc6 {[%clk 0:00:21]}  Qa7 {[%clk 0:01:24]} 21. Bxa8 {[%clk 0:00:20]}  Qxa8 {[%clk 0:01:25]} 22. O-O {[%clk 0:00:18]}  Bh6 {[%clk 0:01:18]} 23. Kh1 {[%clk 0:00:12]}  Qb7 {[%clk 0:01:03]} 24. Rf3 {[%clk 0:00:12]}  Qb5 {[%clk 0:01:02]} 25. Rb3 {[%clk 0:00:10]}  Bd2 {[%clk 0:00:59]} 26. Rd1 {[%clk 0:00:06]}  h5 {[%clk 0:00:59]} 27. Qd3 {[%clk 0:00:05]}  Qxd3 {[%clk 0:00:39]} 28. Rxd3 {[%clk 0:00:05]}  Be3 {[%clk 0:00:40]} 29. Rxe3 {[%clk 0:00:05]}  Rg5 {[%clk 0:00:40]} 30. Rf3 {[%clk 0:00:05]}  Rg4 {[%clk 0:00:40]} 31. h3 {[%clk 0:00:04]}  Rc4 {[%clk 0:00:41]} 32. c3 {[%clk 0:00:04]}  Rc5 {[%clk 0:00:40]} 33. cxb4 {[%clk 0:00:04]}  Rc4 {[%clk 0:00:41]} 34. Rb3 {[%clk 0:00:04]}  Kc7 {[%clk 0:00:41]} 35. b5 {[%clk 0:00:04]}  axb5 {[%clk 0:00:42]} 36. Rxb5 {[%clk 0:00:05]}  Rc2 {[%clk 0:00:41]} 37. a6 {[%clk 0:00:05]}  Rc4 {[%clk 0:00:40]} 38. a7 {[%clk 0:00:05]}  Ra4 {[%clk 0:00:41]} 39. Rc1+ {[%clk 0:00:06]}  Kd7 {[%clk 0:00:40]} 40. Rb7+ {[%clk 0:00:06]} 1-0


[Site "https://www.chess.com"]

[Event "Titled Tuesday Blitz April 25 Early 2023"]
[White "Melikyan, Gnel"]
[Black "Balla, Tamas-Kristof"]
[WhiteFideId "54109990"]
[BlackFideId "1208497"]
[WhiteElo "2138"]
[BlackElo "2334"]
[Result "0-1"]
[Round "05"]
[TimeControl "180+2"]
[Date "2023.04.25"]
[WhiteClock "0:00:02"]
[BlackClock "0:00:37"]

1. e4 {[%clk 0:02:58]}  c5 {[%clk 0:02:59]} 2. Nf3 {[%clk 0:02:59]}  Nc6 {[%clk 0:02:59]} 3. Bb5 {[%clk 0:02:57]}  Nf6 {[%clk 0:02:59]} 4. d3 {[%clk 0:02:56]}  g6 {[%clk 0:02:45]} 5. O-O {[%clk 0:02:55]}  Bg7 {[%clk 0:02:45]} 6. Re1 {[%clk 0:02:54]}  O-O {[%clk 0:02:43]} 7. c3 {[%clk 0:02:54]}  d6 {[%clk 0:02:38]} 8. Nbd2 {[%clk 0:02:47]}  Bg4 {[%clk 0:02:34]} 9. h3 {[%clk 0:02:46]}  Bxf3 {[%clk 0:02:33]} 10. Nxf3 {[%clk 0:02:46]}  e6 {[%clk 0:02:32]} 11. Bxc6 {[%clk 0:02:40]}  bxc6 {[%clk 0:02:33]} 12. e5 {[%clk 0:02:41]}  Nd5 {[%clk 0:02:06]} 13. exd6 {[%clk 0:02:38]}  Qxd6 {[%clk 0:02:07]} 14. Qa4 {[%clk 0:02:28]}  Rfd8 {[%clk 0:01:56]} 15. Nd2 {[%clk 0:02:07]}  Nb6 {[%clk 0:01:45]} 16. Qe4 {[%clk 0:01:54]}  Qxd3 {[%clk 0:01:45]} 17. Qxc6 {[%clk 0:01:53]}  Rac8 {[%clk 0:01:25]} 18. Qe4 {[%clk 0:01:50]}  Qd7 {[%clk 0:01:12]} 19. Nf3 {[%clk 0:01:48]}  Nd5 {[%clk 0:01:11]} 20. Bg5 {[%clk 0:01:45]}  Re8 {[%clk 0:01:02]} 21. Rad1 {[%clk 0:01:44]}  Qc7 {[%clk 0:01:00]} 22. c4 {[%clk 0:01:26]}  Nb4 {[%clk 0:00:55]} 23. a3 {[%clk 0:01:21]}  Nc6 {[%clk 0:00:56]} 24. Rd2 {[%clk 0:01:08]}  Nd4 {[%clk 0:00:55]} 25. Nxd4 {[%clk 0:01:06]}  cxd4 {[%clk 0:00:56]} 26. Rc1 {[%clk 0:01:00]}  Qa5 {[%clk 0:00:53]} 27. Qh4 {[%clk 0:00:12]}  f6 {[%clk 0:00:44]} 28. Bh6 {[%clk 0:00:01]}  g5 {[%clk 0:00:40]} 29. b4 {[%clk 0:00:02]}  Qxa3 {[%clk 0:00:37]} 0-1


[Site "https://www.chess.com"]

[Event "Titled Tuesday Blitz April 25 Early 2023"]
[White "Avazkhonov, Alikhon"]
[Black "Danielyan, Vahe"]
[WhiteFideId "14208504"]
[BlackFideId "13304828"]
[WhiteElo "1739"]
[BlackElo "2423"]
[Result "1-0"]
[Round "05"]
[TimeControl "180+2"]
[Date "2023.04.25"]
[WhiteClock "0:00:04"]
[BlackClock "0:00:02"]

1. e4 {[%clk 0:01:34]}  e5 {[%clk 0:02:53]} 2. Nf3 {[%clk 0:01:32]}  Nc6 {[%clk 0:02:50]} 3. Bb5 {[%clk 0:01:32]}  a6 {[%clk 0:02:44]} 4. Ba4 {[%clk 0:01:32]}  Nf6 {[%clk 0:02:39]} 5. O-O {[%clk 0:01:32]}  Be7 {[%clk 0:02:36]} 6. Re1 {[%clk 0:01:32]}  d6 {[%clk 0:02:33]} 7. c3 {[%clk 0:01:31]}  O-O {[%clk 0:02:29]} 8. d4 {[%clk 0:01:30]}  Bg4 {[%clk 0:02:03]} 9. d5 {[%clk 0:01:28]}  Nb8 {[%clk 0:01:53]} 10. Nbd2 {[%clk 0:01:28]}  Nbd7 {[%clk 0:01:52]} 11. Nf1 {[%clk 0:01:29]}  Nc5 {[%clk 0:01:41]} 12. Bc2 {[%clk 0:01:25]}  Bh5 {[%clk 0:01:41]} 13. b4 {[%clk 0:01:25]}  Ncd7 {[%clk 0:01:30]} 14. Ng3 {[%clk 0:01:25]}  Bg6 {[%clk 0:01:22]} 15. Nh4 {[%clk 0:01:25]}  Re8 {[%clk 0:01:06]} 16. Nhf5 {[%clk 0:01:25]}  h6 {[%clk 0:00:55]} 17. Qf3 {[%clk 0:01:16]}  c6 {[%clk 0:00:45]} 18. c4 {[%clk 0:01:14]}  cxd5 {[%clk 0:00:44]} 19. cxd5 {[%clk 0:01:14]}  Rc8 {[%clk 0:00:44]} 20. Bd3 {[%clk 0:01:05]}  Qc7 {[%clk 0:00:33]} 21. Bd2 {[%clk 0:01:04]}  Qb8 {[%clk 0:00:26]} 22. Rec1 {[%clk 0:00:19]}  Bf8 {[%clk 0:00:24]} 23. h4 {[%clk 0:00:16]}  Rxc1+ {[%clk 0:00:19]} 24. Rxc1 {[%clk 0:00:17]}  Rc8 {[%clk 0:00:18]} 25. h5 {[%clk 0:00:14]}  Bh7 {[%clk 0:00:15]} 26. Kh2 {[%clk 0:00:13]}  Rxc1 {[%clk 0:00:15]} 27. Bxc1 {[%clk 0:00:14]}  Qc7 {[%clk 0:00:15]} 28. Bd2 {[%clk 0:00:15]}  Qb6 {[%clk 0:00:15]} 29. Ne2 {[%clk 0:00:14]}  Bxf5 {[%clk 0:00:11]} 30. Qxf5 {[%clk 0:00:14]}  Be7 {[%clk 0:00:08]} 31. g4 {[%clk 0:00:14]}  Qc7 {[%clk 0:00:06]} 32. Kg3 {[%clk 0:00:14]}  Nh7 {[%clk 0:00:06]} 33. Qf3 {[%clk 0:00:07]}  Bg5 {[%clk 0:00:05]} 34. Bxg5 {[%clk 0:00:06]}  Nxg5 {[%clk 0:00:06]} 35. Qe3 {[%clk 0:00:06]}  Nf6 {[%clk 0:00:05]} 36. f3 {[%clk 0:00:06]}  Kh8 {[%clk 0:00:04]} 37. a4 {[%clk 0:00:05]}  Kg8 {[%clk 0:00:03]} 38. a5 {[%clk 0:00:05]}  Kf8 {[%clk 0:00:04]} 39. Qd2 {[%clk 0:00:03]}  Ke7 {[%clk 0:00:03]} 40. Nc3 {[%clk 0:00:03]}  Kd8 {[%clk 0:00:02]} 41. Na4 {[%clk 0:00:04]} 1-0


[Site "https://www.chess.com"]

[Event "Titled Tuesday Blitz April 25 Early 2023"]
[White "Harriott, Tyrell"]
[Black "Yelisieiev, Yevhenii"]
[WhiteFideId "2086484"]
[BlackFideId "14139642"]
[WhiteElo "2107"]
[BlackElo "2425"]
[Result "0-1"]
[Round "05"]
[TimeControl "180+2"]
[Date "2023.04.25"]
[WhiteClock "0:00:05"]
[BlackClock "0:00:05"]

1. d4 {[%clk 0:02:56]}  d6 {[%clk 0:02:54]} 2. e3 {[%clk 0:02:56]}  Nf6 {[%clk 0:02:54]} 3. Bd3 {[%clk 0:02:55]}  Nbd7 {[%clk 0:02:53]} 4. f4 {[%clk 0:02:54]}  e5 {[%clk 0:02:42]} 5. Ne2 {[%clk 0:02:54]}  e4 {[%clk 0:02:28]} 6. Bc4 {[%clk 0:02:54]}  d5 {[%clk 0:02:28]} 7. Bb3 {[%clk 0:02:53]}  c6 {[%clk 0:02:29]} 8. c4 {[%clk 0:02:47]}  dxc4 {[%clk 0:02:09]} 9. Bxc4 {[%clk 0:02:45]}  Nb6 {[%clk 0:02:10]} 10. Bb3 {[%clk 0:02:45]}  Nbd5 {[%clk 0:02:10]} 11. Bd2 {[%clk 0:02:34]}  Ng4 {[%clk 0:01:49]} 12. Bxd5 {[%clk 0:02:32]}  cxd5 {[%clk 0:01:48]} 13. O-O {[%clk 0:02:25]}  Be7 {[%clk 0:01:34]} 14. Nbc3 {[%clk 0:02:18]}  O-O {[%clk 0:01:17]} 15. Qb3 {[%clk 0:02:14]}  Nf6 {[%clk 0:01:17]} 16. Ng3 {[%clk 0:02:11]}  b6 {[%clk 0:01:04]} 17. Rfc1 {[%clk 0:01:52]}  g6 {[%clk 0:00:52]} 18. a4 {[%clk 0:01:46]}  Ba6 {[%clk 0:00:45]} 19. Nb5 {[%clk 0:01:42]}  Ne8 {[%clk 0:00:19]} 20. Bb4 {[%clk 0:01:37]}  Bxb4 {[%clk 0:00:15]} 21. Qxb4 {[%clk 0:01:36]}  Qd7 {[%clk 0:00:16]} 22. Rc2 {[%clk 0:01:28]}  Bxb5 {[%clk 0:00:16]} 23. axb5 {[%clk 0:01:28]}  Nd6 {[%clk 0:00:16]} 24. Rc6 {[%clk 0:01:27]}  Nc4 {[%clk 0:00:12]} 25. Qc3 {[%clk 0:01:22]}  a6 {[%clk 0:00:10]} 26. Rxc4 {[%clk 0:00:56]}  dxc4 {[%clk 0:00:09]} 27. bxa6 {[%clk 0:00:57]}  b5 {[%clk 0:00:09]} 28. Qa5 {[%clk 0:00:56]}  Rfb8 {[%clk 0:00:06]} 29. Nxe4 {[%clk 0:00:55]}  Qe6 {[%clk 0:00:04]} 30. Nc5 {[%clk 0:00:55]}  Qxe3+ {[%clk 0:00:04]} 31. Kh1 {[%clk 0:00:55]}  Qxd4 {[%clk 0:00:04]} 32. a7 {[%clk 0:00:43]}  Rc8 {[%clk 0:00:05]} 33. b4 {[%clk 0:00:32]}  c3 {[%clk 0:00:04]} 34. h3 {[%clk 0:00:16]}  c2 {[%clk 0:00:04]} 35. Qa3 {[%clk 0:00:16]}  Rxc5 {[%clk 0:00:01]} 36. bxc5 {[%clk 0:00:16]}  b4 {[%clk 0:00:02]} 37. Qc1 {[%clk 0:00:15]}  Qxc5 {[%clk 0:00:02]} 38. Ra2 {[%clk 0:00:14]}  b3 {[%clk 0:00:02]} 39. Rb2 {[%clk 0:00:13]}  Qc4 {[%clk 0:00:02]} 40. Kh2 {[%clk 0:00:10]}  Rxa7 {[%clk 0:00:02]} 41. Qe3 {[%clk 0:00:10]}  Ra4 {[%clk 0:00:02]} 42. Qe8+ {[%clk 0:00:10]}  Kg7 {[%clk 0:00:02]} 43. Qe5+ {[%clk 0:00:10]}  f6 {[%clk 0:00:03]} 44. Qe7+ {[%clk 0:00:10]}  Qf7 {[%clk 0:00:04]} 45. Qe3 {[%clk 0:00:09]}  Rc4 {[%clk 0:00:04]} 46. Rxb3 {[%clk 0:00:10]}  c1=Q {[%clk 0:00:04]} 47. Rd3 {[%clk 0:00:10]}  Rc7 {[%clk 0:00:04]} 48. Qf3 {[%clk 0:00:09]}  Qcc4 {[%clk 0:00:04]} 49. Re3 {[%clk 0:00:09]}  Qc6 {[%clk 0:00:04]} 50. Re4 {[%clk 0:00:09]}  f5 {[%clk 0:00:04]} 51. Re3 {[%clk 0:00:08]}  Qxf3 {[%clk 0:00:04]} 52. Rxf3 {[%clk 0:00:08]}  Rc4 {[%clk 0:00:04]} 53. Kg3 {[%clk 0:00:09]}  Qc7 {[%clk 0:00:05]} 54. h4 {[%clk 0:00:07]}  h6 {[%clk 0:00:05]} 55. h5 {[%clk 0:00:06]}  g5 {[%clk 0:00:06]} 56. Kh2 {[%clk 0:00:05]}  Rxf4 {[%clk 0:00:06]} 57. Rg3 {[%clk 0:00:04]}  Rh4+ {[%clk 0:00:06]} 58. Kg1 {[%clk 0:00:04]}  Qxg3 {[%clk 0:00:06]} 59. Kf1 {[%clk 0:00:05]}  Re4 {[%clk 0:00:05]} 0-1


[Site "https://www.chess.com"]